bitfinex/quotes_ETHUSD_20240928
["timestamp","ask_amount","ask_price","bid_price","bid_amount"]
[1727519533597,0.78195068,2679.4,2679.2,3.73245]
[1727519533902,0.78195068,2679.3,2679.2,3.73245]
[1727519534270,0.78195068,2679.4,2679.2,3.73245]
[1727519535899,0.05763349,2679.3,2679.2,3.73245]
[1727519537776,0.05763349,2679.3,2679.2,4.71379437]
[1727519538280,0.78195068,2679.4,2679.2,4.71379437]
[1727519538475,0.05795,2679.3,2679.1,6.08081368]
[1727519539484,0.05795,2679.3,2679.2,3.73245]
[1727519543224,0.05795,2679.3,2679.1,6.08078368]
[1727519543403,0.05795,2679.3,2679.1,3.73249]
[1727519543979,0.05795,2679.3,2679.0,3.73265]
[1727519544184,0.1426,2679.2,2679.0,3.73265]
[1727519544525,0.1426,2679.2,2679.0,3.73266]
[1727519544526,0.05823162,2679.1,2679.0,3.73266]
[1727519548502,0.05823162,2679.1,2679.0,4.5788531]
[1727519554704,0.8401823,2679.1,2679.0,4.5788531]
[1727519554905,0.05823162,2679.1,2679.0,4.5788531]
[1727519555411,0.8401823,2679.1,2679.0,4.5788531]
[1727519557119,0.84099194,2679.1,2679.0,4.5788531]
[1727519557453,0.84100856,2679.1,2679.0,4.5788531]
[1727519557636,1.23483019,2679.1,2679.0,4.5788531]
[1727519560229,1.23483019,2679.1,2679.0,3.73266]
[1727519565132,1.23483019,2679.1,2679.0,4.55326]
[1727519567189,2.88019319,2679.1,2679.0,4.55326]
[1727519567734,1.31130835,2679.1,2679.0,4.55326]
[1727519568160,2.88019319,2679.1,2679.0,4.55326]
[1727519568351,1.31130835,2679.1,2679.0,4.55326]
[1727519568670,2.88019319,2679.1,2679.0,4.55326]
[1727519568965,1.31130835,2679.1,2679.0,4.55326]
[1727519569170,2.88019319,2679.1,2679.0,4.55326]
[1727519569468,1.31130835,2679.1,2679.0,4.55326]
[1727519569638,2.88019319,2679.1,2679.0,4.55326]
[1727519570569,2.88019319,2679.1,2679.0,3.73266]
[1727519572658,1.31130835,2679.1,2679.0,3.73266]
[1727519572861,1.62697161,2679.1,2679.0,3.73266]
[1727519573232,2.88004834,2679.1,2679.0,3.73266]
[1727519573434,1.31130835,2679.1,2679.0,3.73266]
[1727519573634,0.05823162,2679.1,2679.0,3.73266]
[1727519574075,1.62728233,2679.1,2679.0,3.73266]
[1727519574243,2.88035906,2679.1,2679.0,3.73266]
[1727519574443,3.27220537,2679.1,2679.0,3.73266]
[1727519574660,1.31130835,2679.1,2679.0,3.73266]
[1727519574973,3.27220537,2679.1,2679.0,3.73266]
[1727519575140,1.31130835,2679.1,2679.0,4.6609131]
[1727519575669,3.27220537,2679.1,2679.0,4.6609131]
[1727519575840,3.27380122,2679.1,2679.0,4.6609131]
[1727519577342,3.27419067,2679.1,2679.0,4.6609131]
[1727519577854,1.31130835,2679.1,2679.0,4.6609131]
[1727519578950,1.31130835,2679.1,2678.5,0.7957]
[1727519578951,0.1426,2679.0,2678.5,0.7957]
[1727519579153,1.96326018,2678.6,2678.5,3.73335]
[1727519579368,3.21633691,2678.6,2678.5,3.73335]
[1727519579543,3.27109343,2678.6,2678.5,3.73335]
[1727519580568,3.27109343,2678.6,2678.2,3.0]
[1727519580569,1.45043325,2678.6,2678.2,3.0]
[1727519580743,3.21544383,2678.5,2678.4,3.73345]
[1727519580944,3.2698363,2678.5,2678.4,3.73345]
[1727519581376,1.30749692,2678.5,2678.4,3.73345]
[1727519581559,1.62364697,2678.5,2678.4,3.73345]
[1727519581750,2.8767237,2678.5,2678.4,3.73345]
[1727519583683,2.8767237,2678.5,2678.4,4.780164]
[1727519587580,1.62364697,2678.5,2678.4,4.780164]
[1727519588984,0.05442019,2678.5,2678.4,4.780164]
[1727519593781,1.56922678,2678.6,2678.4,4.780164]
[1727519594090,1.1751144,2678.6,2678.5,3.73343]
[1727519594673,1.56922678,2678.7,2678.6,3.73329]
[1727519594888,2.82055797,2678.7,2678.6,3.73329]
[1727519596470,1.25133119,2678.7,2678.6,3.73329]
[1727519596675,2.82055797,2678.7,2678.6,3.73329]
[1727519597189,1.25131529,2678.7,2678.6,3.73329]
[1727519597390,1.30200045,2678.7,2678.6,3.73329]
[1727519597585,1.30197472,2678.7,2678.6,3.73329]
[1727519597995,2.8712015,2678.7,2678.6,3.73329]
[1727519598400,0.05071502,2678.7,2678.6,3.73329]
[1727519598584,2.87118992,2678.7,2678.6,3.73329]
[1727519598904,2.8204749,2678.7,2678.6,3.73329]
[1727519599110,1.3017862,2678.7,2678.6,3.73329]
[1727519599508,2.87101298,2678.7,2678.6,3.73329]
[1727519600015,1.22537795,2678.7,2678.6,3.73329]
[1727519600216,1.30175389,2678.7,2678.6,3.73329]
[1727519600389,1.22539055,2678.7,2678.6,3.73329]
[1727519600590,0.05053808,2678.7,2678.6,3.73329]
[1727519600899,1.30174448,2678.7,2678.6,3.73329]
[1727519601080,1.17485409,2678.7,2678.6,3.73329]
[1727519601281,1.3018167,2678.7,2678.6,3.73329]
[1727519601580,1.22544936,2678.7,2678.6,3.73329]
[1727519601776,1.22545072,2678.7,2678.6,3.73329]
[1727519601991,0.0506034,2678.7,2678.6,3.73329]
[1727519602194,1.22545859,2678.7,2678.6,3.73329]
[1727519602484,1.17485519,2678.7,2678.6,3.73329]
[1727519602688,1.30128909,2678.7,2678.6,3.73329]
[1727519602881,1.30128691,2678.7,2678.6,3.73329]
[1727519603322,1.22546334,2678.7,2678.6,3.73329]
[1727519603481,1.30128513,2678.7,2678.6,3.73329]
[1727519603678,1.30128885,2678.7,2678.6,3.73329]
[1727519603880,1.22544756,2678.7,2678.6,3.73329]
[1727519604228,1.22545677,2678.7,2678.6,3.73329]
[1727519604927,1.30129442,2678.7,2678.6,3.73329]
[1727519605520,0.0506034,2678.7,2678.6,3.73329]
[1727519605831,1.17487794,2678.7,2678.6,5.251762]
[1727519606139,0.05074708,2678.7,2678.6,5.251762]
[1727519606437,0.783189,2678.9,2678.7,3.73315]
[1727519606612,1.17487794,2679.0,2678.8,7.50481]
[1727519606613,0.783189,2679.0,2678.8,7.50481]
[1727519606922,0.783189,2679.0,2678.9,5.11890573]
[1727519607428,1.17487794,2679.1,2679.0,3.73273]
[1727519607588,2.11700755,2679.1,2679.0,3.73273]
[1727519607991,2.11700755,2679.1,2679.0,2.733116]
[1727519608228,2.11700755,2679.1,2678.9,3.73287]
[1727519608421,1.72527156,2679.0,2678.9,3.73287]
[1727519608623,0.94212961,2679.0,2678.9,3.73287]
[1727519608821,1.72529086,2679.0,2678.9,3.73287]
[1727519609015,2.11700755,2679.0,2678.9,3.73287]
[1727519609310,0.94212961,2679.0,2678.9,3.73287]
[1727519609514,1.77624984,2679.0,2678.9,3.73287]
[1727519609838,1.77625313,2679.0,2678.9,3.73287]
[1727519610038,1.77630839,2679.0,2678.9,3.73287]
[1727519610530,0.99314141,2679.0,2678.9,3.73287]
[1727519610836,1.7763263,2679.0,2678.9,3.73287]
[1727519612503,0.99314141,2679.0,2678.9,3.73287]
[1727519612711,0.83415797,2679.0,2678.9,4.71335237]
[1727519612945,1.77634968,2679.0,2678.9,4.71335237]
[1727519614908,1.77644678,2679.0,2678.9,4.71335237]
[1727519616249,1.77644678,2679.0,2678.9,10.06651605]
[1727519616610,0.0509497,2679.0,2678.9,10.06651605]
[1727519617035,0.99322238,2679.0,2678.9,10.06651605]
[1727519617236,0.99321559,2679.0,2678.9,10.06651605]
[1727519617443,0.0509497,2679.0,2678.9,10.06651605]
[1727519617963,0.78320827,2679.2,2679.1,3.73259]
[1727519618258,0.78320827,2679.2,2679.1,6.73259]
[1727519618416,1.72540486,2679.2,2679.1,6.73259]
[1727519619651,1.72533745,2679.2,2679.1,6.73259]
[1727519620355,1.77456344,2679.2,2679.1,6.73259]
[1727519621348,1.77456344,2679.2,2679.1,8.25048067]
[1727519624413,0.99135517,2679.2,2679.1,8.25048067]
[1727519624816,1.77456344,2679.2,2679.1,8.25048067]
[1727519625553,0.99135517,2679.2,2679.1,9.03648067]
[1727519626257,0.04922599,2679.2,2679.1,9.03648067]
[1727519626717,0.78320827,2679.3,2679.2,3.73245]
[1727519627152,1.72500827,2679.3,2679.2,3.73245]
[1727519627357,1.77457403,2679.3,2679.2,3.73245]
[1727519629343,1.77455456,2679.3,2679.2,3.73245]
[1727519634175,1.77424057,2679.3,2679.2,3.73245]
[1727519635385,0.9910323,2679.3,2679.2,3.73245]
[1727519636682,1.77378856,2679.3,2679.2,3.73245]
[1727519636973,1.77379101,2679.3,2679.2,3.73245]
[1727519637176,0.9910323,2679.3,2679.2,3.73245]
[1727519637387,2.16591024,2679.3,2679.2,3.73245]
[1727519637978,0.9910323,2679.3,2679.2,3.73245]
[1727519638373,2.16591024,2679.3,2679.2,3.73245]
[1727519639166,2.16557157,2679.3,2679.2,3.73245]
[1727519642595,2.16597482,2679.3,2679.2,3.73245]
[1727519644619,2.1662562,2679.3,2679.2,3.73245]
[1727519646408,2.24745692,2679.3,2679.2,3.73245]
[1727519647308,3.81711051,2679.3,2679.2,3.73245]
[1727519647752,2.24788373,2679.3,2679.2,3.73245]
[1727519648143,3.81711051,2679.3,2679.2,3.73245]
[1727519649820,0.99180507,2679.3,2679.2,6.80709584]
[1727519650022,0.04956576,2679.3,2679.2,8.89788079]
[1727519650226,1.77607023,2679.3,2679.2,8.82323495]
[1727519650968,0.99213056,2679.3,2679.2,8.82323495]
[1727519651122,0.04956576,2679.3,2679.2,8.82323495]
[1727519651331,0.99224631,2679.3,2679.2,8.82323495]
[1727519651550,1.77618598,2679.3,2679.2,8.82323495]
[1727519651863,0.83350543,2679.3,2679.2,8.82323495]
[1727519652035,1.77640469,2679.3,2679.2,8.82323495]
[1727519652229,1.72683893,2679.3,2679.2,8.82323495]
[1727519653684,1.77426912,2679.3,2679.2,8.82323495]
[1727519654103,0.04743019,2679.3,2679.2,8.82323495]
[1727519654398,1.08543939,2679.4,2679.3,3.73231]
[1727519654583,2.26147718,2679.4,2679.3,3.73231]
[1727519654755,2.55978772,2679.4,2679.3,3.73231]
[1727519655097,2.24773103,2679.4,2679.3,3.73231]
[1727519655307,0.99056094,2679.4,2679.3,3.73231]
[1727519655955,2.24769197,2679.4,2679.3,3.73231]
[1727519656397,2.16684395,2679.4,2679.3,3.73231]
[1727519656555,2.16684395,2679.4,2679.3,5.29947368]
[1727519656755,2.16682932,2679.4,2679.3,5.29947368]
[1727519657559,1.77463738,2679.4,2679.3,5.29947368]
[1727519657754,1.77463738,2679.4,2679.3,6.28010605]
[1727519658482,1.77447883,2679.4,2679.3,7.05450605]
[1727519658798,0.04771183,2679.4,2679.3,7.05450605]
[1727519660464,0.04771183,2679.4,2679.3,10.05450605]
[1727519661295,0.78409107,2679.6,2679.5,3.73203]
[1727519661493,1.72643347,2679.6,2679.5,3.73203]
[1727519662559,1.72643347,2679.6,2679.5,5.29919368]
[1727519663355,1.72643347,2679.6,2679.5,3.73203]
[1727519663700,0.78409107,2679.7,2679.6,3.7319]
[1727519664192,1.72582075,2679.7,2679.6,3.7319]
[1727519664863,1.77378773,2679.7,2679.6,3.7319]
[1727519666405,0.98947588,2679.7,2679.6,3.7319]
[1727519666604,0.04796698,2679.7,2679.6,6.29512947]
[1727519666904,1.56922678,2680.0,2679.8,3.73162]
[1727519666905,0.78409107,2680.0,2679.8,3.73162]
[1727519667113,0.78409107,2680.0,2679.9,6.04497968]
[1727519667262,1.17628301,2680.1,2680.0,3.73134]
[1727519667263,0.7831856,2680.1,2680.0,3.73134]
[1727519667466,1.72418345,2680.1,2680.0,3.73134]
[1727519667801,0.6331856,2680.1,2680.0,3.73134]
[1727519668501,0.6800075,2680.1,2680.0,3.73134]
[1727519670202,0.0468219,2680.1,2680.0,3.73134]
[1727519670396,1.17628301,2680.3,2679.9,1.56716368]
[1727519670609,1.17628301,2680.3,2680.2,3.73106]
[1727519670814,1.17628301,2680.3,2680.2,3.276429]
[1727519672239,1.2231416,2680.3,2680.2,3.276429]
[1727519673219,0.1426,2680.2,2679.7,4.56716368]
[1727519673402,0.1426,2680.2,2679.7,1.56716368]
[1727519673403,1.22027075,2680.1,2679.7,1.56716368]
[1727519673598,1.22027075,2680.1,2680.0,3.73134]
[1727519673599,0.0468165,2680.1,2680.0,3.73134]
[1727519674442,1.22027075,2680.1,2680.0,3.73134]
[1727519676155,1.6560805,2680.1,2679.9,7.46286]
[1727519676351,1.31607282,2680.0,2679.9,3.7314]
[1727519676733,1.36294095,2680.0,2679.8,7.46315]
[1727519676980,1.36294095,2680.0,2679.9,3.73148]
[1727519677342,1.6854787,2680.0,2679.9,3.73148]
[1727519677530,1.6854787,2680.0,2679.6,3.7318]
[1727519677730,0.78236958,2679.8,2679.7,3.73176]
[1727519678167,0.82920391,2679.8,2679.7,3.73176]
[1727519679763,0.18943433,2679.8,2679.7,3.73176]
[1727519680471,1.36290715,2679.8,2679.7,3.73176]
[1727519680770,0.82931477,2679.8,2679.7,3.73176]
[1727519682744,0.04683433,2679.8,2679.7,3.73176]
[1727519682926,0.82931477,2679.8,2679.7,3.73176]
[1727519683331,0.04683433,2679.8,2679.7,3.73176]
[1727519683532,0.04683433,2679.8,2679.7,4.71250537]
[1727519684376,0.78248044,2680.0,2679.9,3.73148]
[1727519685299,0.1426,2680.1,2680.0,3.73134]
[1727519685880,2.96371967,2680.1,2680.0,3.73134]
[1727519686218,1.39449845,2680.1,2680.0,3.73134]
[1727519686420,1.31658622,2680.1,2680.0,3.73134]
[1727519686711,0.1426,2680.1,2680.0,3.73134]
[1727519686912,1.39450755,2680.1,2680.0,3.73134]
[1727519687119,1.22084602,2680.1,2680.0,3.73134]
[1727519691640,1.22084602,2680.1,2680.0,4.50804]
[1727519692037,0.04684426,2680.1,2680.0,4.50804]
[1727519692212,1.22084602,2680.1,2680.0,4.50804]
[1727519693299,1.22084602,2680.1,2680.0,3.73134]
[1727519695243,1.2217859,2680.1,2680.0,3.73134]
[1727519695418,1.30001757,2680.1,2680.0,3.73134]
[1727519699318,2.86924435,2680.1,2680.0,3.73134]
[1727519700223,1.22223146,2680.1,2680.0,3.73134]
[1727519700418,1.29953067,2680.1,2680.0,3.73134]
[1727519700836,2.86875745,2680.1,2680.0,3.73134]
[1727519701234,1.29953067,2680.1,2680.0,3.73134]
[1727519701445,3.25852932,2680.1,2680.0,3.73134]
[1727519702869,3.25923501,2680.1,2680.0,3.73134]
[1727519703273,3.59941851,2680.1,2679.9,3.73139]
[1727519703458,1.25268641,2680.0,2679.9,3.73139]
[1727519703678,3.25917738,2680.0,2679.9,3.73139]
[1727519704883,3.25964225,2680.0,2679.9,3.73139]
[1727519705084,3.86910513,2680.0,2679.9,3.73139]
[1727519705488,0.1426,2679.9,2679.2,3.73235]
[1727519705672,1.90893592,2680.0,2679.4,3.7321]
[1727519705673,0.1426,2679.5,2679.4,3.7321]
[1727519705843,3.35577063,2679.5,2679.4,3.7321]
[1727519706050,3.40235983,2679.5,2679.4,3.7321]
[1727519706483,3.40235983,2679.5,2679.3,3.73218]
[1727519706790,2.82086431,2679.4,2679.3,3.73218]
[1727519707188,2.82086898,2679.4,2679.3,3.73218]
[1727519707485,2.86715237,2679.4,2679.3,3.73218]
[1727519708984,1.2989698,2679.4,2679.3,3.73218]
[1727519709186,1.22177513,2679.4,2679.3,3.73218]
[1727519714206,0.04628339,2679.4,2679.3,3.73218]
[1727519714712,0.82933126,2679.4,2679.3,3.73218]
[1727519714897,0.04628339,2679.4,2679.3,3.73218]
[1727519715419,0.82928361,2679.4,2679.3,3.73218]
[1727519715718,1.22177513,2679.4,2679.3,3.73218]
[1727519715888,0.8292883,2679.4,2679.3,3.73218]
[1727519716085,1.22177513,2679.4,2679.3,3.73218]
[1727519716317,0.04628339,2679.4,2679.3,3.73218]
[1727519717477,0.82923923,2679.4,2679.3,3.73218]
[1727519717677,0.04628339,2679.4,2679.3,3.73218]
[1727519718880,1.22177513,2679.4,2679.3,3.73218]
[1727519719080,0.04628339,2679.4,2679.3,3.73218]
[1727519719283,1.22177513,2679.4,2679.3,3.73218]
[1727519719800,0.04628339,2679.4,2679.3,3.73218]
[1727519719983,1.22177513,2679.4,2679.3,3.73218]
[1727519720513,0.04628339,2679.4,2679.3,3.73218]
[1727519720715,1.22177513,2679.4,2679.3,3.73218]
[1727519721013,0.82914698,2679.4,2679.3,3.73218]
[1727519721260,0.82913821,2679.4,2679.3,3.73218]
[1727519721405,0.82911977,2679.4,2679.3,3.73218]
[1727519721930,0.82911121,2679.4,2679.3,3.73218]
[1727519722279,0.04628339,2679.4,2679.3,3.73218]
[1727519722516,0.82908423,2679.4,2679.3,3.73218]
[1727519732198,0.96859589,2679.4,2679.3,3.73218]
[1727519735494,0.96859589,2679.4,2679.3,3.277994]
[1727519738256,0.96859589,2679.4,2679.3,4.092594]
[1727519739446,0.18579505,2679.4,2679.3,4.8750984]
[1727519739941,0.78280084,2679.5,2679.4,3.73217]
[1727519743344,1.17549174,2679.6,2679.4,3.73217]
[1727519743562,1.17549174,2679.6,2679.5,3.73203]
[1727519744448,1.56818257,2679.7,2679.6,3.7319]
[1727519744635,2.81898829,2679.7,2679.6,3.7319]
[1727519745332,1.25080572,2679.7,2679.6,3.7319]
[1727519747244,3.39559001,2679.7,2679.6,3.7319]
[1727519750463,3.39392334,2679.7,2679.6,3.7319]
[1727519751026,3.39554425,2679.7,2679.6,3.7319]
[1727519751226,1.43444176,2679.7,2679.6,3.7319]
[1727519753370,0.18363604,2679.7,2679.6,3.7319]
[1727519753533,3.39583058,2679.7,2679.6,3.7319]
[1727519753893,1.43444176,2679.7,2679.6,3.7319]
[1727519754030,3.39584335,2679.7,2679.6,3.7319]
[1727519754428,1.43444176,2679.7,2679.6,3.7319]
[1727519755745,1.43444176,2679.7,2679.6,4.478293]
[1727519756480,2.14491563,2679.7,2679.6,5.258693]
[1727519756681,3.39572135,2679.7,2679.6,5.258693]
[1727519757192,3.00344648,2679.7,2679.6,6.82585668]
[1727519757390,1.43444176,2679.7,2679.6,6.82585668]
[1727519757543,1.36019641,2679.7,2679.6,6.82585668]
[1727519758047,1.36019641,2679.7,2679.6,9.82585668]
[1727519758446,0.18363604,2679.7,2679.6,9.82585668]
[1727519758987,1.17656037,2679.8,2679.7,7.51216]
[1727519759152,1.17656037,2679.8,2679.7,9.24112467]
[1727519761066,1.35433143,2679.8,2679.7,9.24112467]
[1727519761749,0.17777106,2679.8,2679.7,9.24112467]
[1727519763102,0.96148518,2679.8,2679.7,9.24112467]
[1727519763819,0.17777106,2679.8,2679.7,9.24112467]
[1727519764102,0.96147875,2679.8,2679.7,9.24112467]
[1727519764773,1.35433143,2679.8,2679.7,3.73176]
[1727519764975,2.13700602,2679.8,2679.7,3.73176]
[1727519765272,3.38717709,2679.8,2679.5,3.73196]
[1727519765598,1.56753713,2679.6,2679.5,3.73196]
[1727519765755,2.8177082,2679.6,2679.5,3.73196]
[1727519765954,2.99547342,2679.6,2679.5,3.73196]
[1727519770777,2.99547342,2679.6,2679.4,7.46417]
[1727519771120,2.8177082,2679.5,2679.4,3.73207]
[1727519772000,1.25017107,2679.5,2679.4,3.73207]
[1727519772201,2.81796002,2679.5,2679.4,3.73207]
[1727519772403,0.1426,2679.4,2678.8,0.7718]
[1727519772702,0.1426,2679.4,2679.0,3.73271]
[1727519772703,1.56802951,2679.2,2679.0,3.73271]
[1727519772874,3.21069861,2679.2,2679.1,3.73259]
[1727519773274,1.25070476,2679.2,2679.1,3.73259]
[1727519774257,3.2104804,2679.2,2679.1,3.73259]
[1727519775517,1.25070476,2679.2,2679.0,3.73271]
[1727519775815,1.95977564,2679.3,2678.8,4.50476]
[1727519775816,3.3530804,2679.1,2678.8,3.73296]
[1727519776047,2.81808771,2679.0,2678.9,3.73286]
[1727519776244,1.17525327,2679.0,2678.9,3.73286]
[1727519776562,1.35257415,2679.0,2678.9,3.73286]
[1727519776714,1.35258966,2679.0,2678.9,3.73286]
[1727519776914,1.42615463,2679.0,2678.9,3.73286]
[1727519777225,1.35238063,2679.0,2678.9,3.73286]
[1727519777562,0.17732088,2679.0,2678.9,3.73286]
[1727519778080,1.35238183,2679.0,2678.9,3.73286]
[1727519778383,0.96054281,2679.0,2678.9,3.73286]
[1727519779091,0.17732088,2679.0,2678.9,5.309942]
[1727519779646,0.17732088,2679.0,2678.9,8.309942]
[1727519779891,0.78322193,2679.5,2679.3,3.73231]
[1727519780186,0.78303,2679.5,2679.4,4.929501]
[1727519780490,0.78303,2679.6,2679.4,4.929501]
[1727519780800,0.78303,2679.6,2679.5,3.73203]
[1727519781144,1.17458031,2679.7,2679.6,3.7319]
[1727519781779,1.17450533,2679.7,2679.6,3.7319]
[1727519782496,1.56738295,2679.8,2679.7,3.73176]
[1727519782643,2.81534301,2679.8,2679.7,3.73176]
[1727519783669,2.99268578,2679.8,2679.7,3.73176]
[1727519784044,1.42530283,2679.8,2679.7,3.73176]
[1727519784289,1.42529804,2679.8,2679.7,3.73176]
[1727519784491,1.35180947,2679.8,2679.7,3.73176]
[1727519785194,1.35180947,2679.8,2679.7,5.302226]
[1727519785195,0.96028502,2679.8,2679.7,5.302226]
[1727519787369,0.17734277,2679.8,2679.7,5.302226]
[1727519787571,0.17734277,2679.8,2679.7,8.302226]
[1727519788096,0.78294225,2680.0,2679.9,3.73148]
[1727519788481,1.1744667,2680.1,2680.0,3.73134]
[1727519790793,1.35283421,2680.1,2680.0,3.73134]
[1727519792290,1.35283421,2680.1,2680.0,4.51274]
[1727519792598,0.96084493,2680.1,2680.0,5.62989127]
[1727519793331,0.96084493,2680.1,2680.0,7.19705495]
[1727519793503,0.17836751,2680.1,2680.0,7.19705495]
[1727519793686,0.78247742,2680.2,2680.1,3.7312]
[1727519794205,0.17641116,2680.2,2680.1,3.7312]
[1727519794408,0.78247742,2680.2,2680.1,3.7312]
[1727519794632,0.95888858,2680.2,2680.1,3.7312]
[1727519796526,0.17641116,2680.2,2680.1,3.7312]
[1727519796722,0.17641116,2680.2,2680.1,5.04045713]
[1727519797027,0.78247742,2680.3,2680.2,3.73106]
[1727519797327,1.1744667,2680.4,2680.3,3.73092]
[1727519798101,1.3509159,2680.4,2680.3,3.73092]
[1727519798288,1.34934866,2680.4,2680.3,3.73092]
[1727519798693,1.34939552,2680.4,2680.3,3.73092]
[1727519798921,1.34938527,2680.4,2680.3,3.73092]
[1727519799128,1.34940517,2680.4,2680.3,3.73092]
[1727519799549,0.1764492,2680.4,2680.3,3.73092]
[1727519800031,1.34930556,2680.4,2680.3,3.73092]
[1727519800344,1.49190556,2680.4,2680.3,3.73092]
[1727519803230,1.49166761,2680.4,2680.3,3.73092]
[1727519805625,1.49166761,2680.4,2680.3,3.185212]
[1727519810016,0.3190492,2680.4,2680.3,3.185212]
[1727519810526,1.49166761,2680.4,2680.3,3.185212]
[1727519810915,0.3190492,2680.4,2680.3,3.185212]
[1727519811155,1.49166761,2680.4,2680.3,3.185212]
[1727519811860,0.3190492,2680.4,2680.3,3.185212]
[1727519812021,1.49166761,2680.4,2680.3,3.185212]
[1727519812216,0.1764492,2680.4,2680.3,3.185212]
[1727519812556,0.95792282,2680.4,2680.3,3.185212]
[1727519812918,0.1764492,2680.4,2680.3,3.185212]
[1727519813350,0.95791522,2680.4,2680.3,3.185212]
[1727519813552,1.34906761,2680.4,2680.3,3.185212]
[1727519813861,0.1764492,2680.4,2680.3,3.185212]
[1727519814422,0.95790125,2680.4,2680.3,3.185212]
[1727519814726,0.1764492,2680.4,2680.3,3.185212]
[1727519816341,1.34906761,2680.4,2680.3,3.185212]
[1727519816531,0.1764492,2680.4,2680.3,3.185212]
[1727519816732,1.34906761,2680.4,2680.3,3.185212]
[1727519817038,0.1764492,2680.4,2680.3,3.185212]
[1727519817668,1.34906761,2680.4,2680.3,3.185212]
[1727519817830,0.1764492,2680.4,2680.3,3.185212]
[1727519818032,1.34906761,2680.4,2680.3,3.185212]
[1727519818231,0.1764492,2680.4,2680.3,3.185212]
[1727519818857,1.34906761,2680.4,2680.3,3.185212]
[1727519819476,0.1764492,2680.4,2680.3,3.185212]
[1727519820273,1.34906761,2680.4,2680.3,3.185212]
[1727519821174,1.42074253,2680.4,2680.3,3.185212]
[1727519821347,1.34944566,2680.4,2680.3,3.185212]
[1727519822047,0.1764492,2680.4,2680.3,3.185212]
[1727519822383,1.34944566,2680.4,2680.3,3.185212]
[1727519822678,0.95873409,2680.4,2680.3,6.33599088]
[1727519822876,0.1764492,2680.4,2680.3,6.33599088]
[1727519823080,0.78228489,2680.5,2680.4,3.73076]
[1727519823281,1.17299646,2680.5,2680.4,4.73743509]
[1727519823583,1.56738295,2680.7,2680.6,3.7305]
[1727519823734,2.81249667,2680.7,2680.6,3.7305]
[1727519823933,1.24511372,2680.7,2680.6,3.7305]
[1727519824168,1.56738295,2680.7,2680.6,3.7305]
[1727519824477,2.81249667,2680.7,2680.6,3.7305]
[1727519825289,3.20318314,2680.7,2680.6,3.7305]
[1727519825638,1.24511372,2680.7,2680.6,3.7305]
[1727519826146,3.20318314,2680.7,2680.6,3.7305]
[1727519826507,3.37040637,2680.7,2680.6,3.7305]
[1727519827879,3.37040637,2680.7,2680.4,3.73077]
[1727519828062,1.56666032,2680.5,2680.4,3.73077]
[1727519828268,2.97363254,2680.5,2680.4,3.73077]
[1727519829255,2.97363254,2680.5,2680.3,4.54172]
[1727519829256,3.36504164,2680.5,2680.3,3.73082]
[1727519829451,3.20318314,2680.4,2680.3,3.73082]
[1727519829799,3.36588442,2680.4,2680.3,3.73082]
[1727519830301,1.40690171,2680.4,2680.3,3.73082]
[1727519830499,0.16178799,2680.4,2680.3,3.73082]
[1727519830697,1.40690171,2680.4,2680.3,3.73082]
[1727519831277,2.12133306,2680.4,2680.3,3.73082]
[1727519831475,3.36644678,2680.4,2680.3,3.73082]
[1727519831773,1.40690171,2680.4,2680.3,3.73082]
[1727519833479,2.12167129,2680.4,2680.3,3.73082]
[1727519833677,1.40690171,2680.4,2680.3,3.73082]
[1727519834401,2.12167295,2680.4,2680.3,4.52722]
[1727519834707,3.36678667,2680.4,2680.3,4.52722]
[1727519836797,3.36690009,2680.4,2680.3,4.52722]
[1727519837363,1.40690171,2680.4,2680.3,4.52722]
[1727519837570,2.97492192,2680.4,2680.3,4.52722]
[1727519837790,2.97492776,2680.4,2680.3,4.52722]
[1727519838182,2.97497385,2680.4,2680.3,4.52722]
[1727519838605,1.3377809,2680.4,2680.3,5.50976337]
[1727519838826,0.16178799,2680.4,2680.3,5.50976337]
[1727519839484,1.3377809,2680.4,2680.3,5.50976337]
[1727519840612,1.3377809,2680.4,2680.3,4.52722]
[1727519840927,0.16178799,2680.4,2680.3,4.52722]
[1727519841084,0.94560287,2680.4,2680.3,4.52722]
[1727519841990,0.16178799,2680.4,2680.3,4.52722]
[1727519842187,1.33757713,2680.4,2680.3,4.52722]
[1727519842417,1.33757713,2680.4,2680.3,5.50976337]
[1727519844690,1.33757713,2680.4,2680.3,4.52722]
[1727519844887,1.72986013,2680.4,2680.3,3.73082]
[1727519845200,2.97622865,2680.4,2680.3,3.73082]
[1727519857024,2.23858349,2680.4,2680.3,3.73082]
[1727519857202,2.38372725,2680.4,2680.3,3.73082]
[1727519858826,0.81565511,2680.4,2680.3,3.73082]
[1727519859022,1.7132159,2680.4,2680.3,3.73082]
[1727519860128,1.32100708,2680.4,2680.3,4.53312]
[1727519860337,1.32101943,2680.4,2680.3,5.43602337]
[1727519866157,1.38525548,2680.4,2680.3,5.43602337]
[1727519866457,1.32117572,2680.4,2680.3,5.43602337]
[1727519866751,1.32117995,2680.4,2680.3,5.43602337]
[1727519867057,1.32116504,2680.4,2680.3,5.43602337]
[1727519867416,1.32122066,2680.4,2680.3,5.43602337]
[1727519867611,0.14514376,2680.4,2680.3,5.43602337]
[1727519867841,1.32117168,2680.4,2680.3,5.43602337]
[1727519872915,1.32117168,2680.4,2680.3,7.00318705]
[1727519876940,0.14514376,2680.4,2680.3,7.00318705]
[1727519878433,1.32117168,2680.4,2680.3,7.00318705]
[1727519881643,1.32117168,2680.4,2680.3,6.83333378]
[1727519882771,1.32154268,2680.4,2680.3,6.83333378]
[1727519882944,1.32153465,2680.4,2680.3,5.93043041]
[1727519883274,1.38569575,2680.4,2680.3,5.93043041]
[1727519883459,1.32157134,2680.4,2680.3,5.93043041]
[1727519884568,1.38572386,2680.4,2680.3,5.93043041]
[1727519884872,1.38572343,2680.4,2680.3,5.93043041]
[1727519885745,1.32160385,2680.4,2680.3,5.93043041]
[1727519886462,1.3857491,2680.4,2680.3,5.93043041]
[1727519887555,1.32163371,2680.4,2680.3,5.93043041]
[1727519887760,1.38576564,2680.4,2680.3,5.93043041]
[1727519887957,1.38575233,2680.4,2680.3,5.93043041]
[1727519888478,1.32164649,2680.4,2680.3,5.93043041]
[1727519889262,1.32163094,2680.4,2680.3,5.93043041]
[1727519889454,1.3857635,2680.4,2680.3,5.93043041]
[1727519889974,2.95383463,2680.4,2680.3,5.93043041]
[1727519890179,1.32162499,2680.4,2680.3,5.93043041]